{"text_format":"1","workbook":"xlsx","n_sheets":6,"sheets":["Fonction 1","Fonction 2","Fonction 3","Fonction 4","BILAN","INDICATEURS"],"not_rendered":{"charts":0,"images":2,"macros":1,"external_links":0,"defined_names":1,"comments":4,"pivot_tables":0},"unopened":[],"bounds":{"document_bytes":16777216,"sheet_cells":100000,"rows_first":2000,"rows_last":500,"rows_between":2000,"halvings":0,"cell_chars":16384,"cell_head_chars":4096},"cells_cut":0,"cells_raw":0,"read":"whole","date_system":"1900"}

{"sheet":"Fonction 1","index":0,"n_rows":41,"n_cols":20,"rows_kept":41,"cut":false,"hidden":false,"merged":[[1,0,1,20],[2,0,3,3],[2,4,2,20],[3,19,3,20],[3,15,3,18],[19,0,19,1],[3,7,3,10],[3,11,3,14],[3,4,3,6],[4,0,7,0],[18,0,18,1],[7,4,7,5],[5,2,5,3],[5,4,5,7],[5,8,5,11],[5,12,5,14],[7,16,7,17],[16,0,17,0],[5,15,5,17],[6,2,6,3],[6,4,6,7],[6,8,6,11],[6,12,6,14],[6,15,6,17],[15,0,15,1]]}
[]
[]
[null,null,null,null,"FONCTION 1: La sécurité dans les espaces publics et privés "]
[null,null,null,null,"A1.1                                                             Contribuer à la sécurisation d’une manifestation à caractère sportif, social, festif, culturel ",null,null,"A1.2                                                                                              Intervenir lors d’une \nsituation d’infraction  \n",null,null,null,"A1.3                                                                                                      Participer au maintien du bon ordre, de la salubrité, de la tranquillité sur la voie publique ou dans un espace privé ",null,null,null,"A1.4                                                               Intervenir en sécurité routière ",null,null,null,"A1.5                                            Rédiger des écrits professionnels et rendre compte oralement  "]
[null,null,"A1.1C1: Recueillir et transmettre les informations  ","A1.1C2: Procéder aux contrôles, filtrages et palpations \n","A1.2C1: Qualifier et classifier une infraction ","A1.2C2: Identifier le rôle des différents acteurs ","A1.2C3: Mettre en œuvre les procédures requises en fonction de la nature de la situation  \n","A1.2C4: Mettre en œuvre les gestes techniques professionnels d’intervention ","A1.3C1: Mettre en œuvre les techniques individuelles et /ou collectives d’évacuation  ","A1.3C2: Identifier les incidents ou atteintes à la tranquillité publique et donner l’alerte ","A1.3C3: Prévenir les services ou personnes compétents et habilités ","A1.3C4: Identifier et mettre en œuvre les actions adaptées à la sauvegarde \net à la protection du site \n","A1.4C1: Identifier les infractions au Code de la route \n","A1.4C2: Appliquer les techniques permettant de gérer la circulation ou les barrages routiers ","A1.4C3: Assurer la protection des lieux  ","A1.5C1: Identifier et hiérarchiser les informations  ","A1.5C2: Rédiger des écrits professionnels  ","A1.5C3: Utiliser le langage professionnel "]
[null,"TACHES A EFFECTUER "]
[null,"CONNAISSANCES"]
[null,"CRITERES EVALUATION"]
["CONTEXTES","DATES"]
[null,null,"NON EVALUEE","NON EVALUEE","NON EVALUEE","NON EVALUEE","NON EVALUEE","NON EVALUEE","NON EVALUEE","NON EVALUEE","NON EVALUEE","NON EVALUEE","NON EVALUEE","NON EVALUEE","NON EVALUEE","NON EVALUEE","NON EVALUEE","NON EVALUEE"]
[null,null,"NON EVALUEE","NON EVALUEE","NON EVALUEE","NON EVALUEE","NON EVALUEE","NON EVALUEE","NON EVALUEE","NON EVALUEE","NON EVALUEE","NON EVALUEE","NON EVALUEE","NON EVALUEE","NON EVALUEE","NON EVALUEE","NON EVALUEE","NON EVALUEE"]
[null,null,"NON EVALUEE","NON EVALUEE","NON EVALUEE","NON EVALUEE","NON EVALUEE","NON EVALUEE","NON EVALUEE","NON EVALUEE","NON EVALUEE","NON EVALUEE","NON EVALUEE","NON EVALUEE","NON EVALUEE","NON EVALUEE","NON EVALUEE","NON EVALUEE"]
[null,null,"NON EVALUEE","NON EVALUEE","NON EVALUEE","NON EVALUEE","NON EVALUEE","NON EVALUEE","NON EVALUEE","NON EVALUEE","NON EVALUEE","NON EVALUEE","NON EVALUEE","NON EVALUEE","NON EVALUEE","NON EVALUEE","NON EVALUEE","NON EVALUEE"]
[null,null,"NON EVALUEE","NON EVALUEE","NON EVALUEE","NON EVALUEE","NON EVALUEE","NON EVALUEE","NON EVALUEE","NON EVALUEE","NON EVALUEE","NON EVALUEE","NON EVALUEE","NON EVALUEE","NON EVALUEE","NON EVALUEE","NON EVALUEE","NON EVALUEE"]
[null,null,"NON EVALUEE","NON EVALUEE","NON EVALUEE","NON EVALUEE","NON EVALUEE","NON EVALUEE","NON EVALUEE","NON EVALUEE","NON EVALUEE","NON EVALUEE","NON EVALUEE","NON EVALUEE","NON EVALUEE","NON EVALUEE","NON EVALUEE","NON EVALUEE"]
["PFMP"]
["PLACE DE L'ELEVE","Agent"]
[null,"Chef d'équipe"]
["Ressentis, difficultés rencontrées, axes d'amélioration"]
["Bilan",null,{"$f":"((SUM(C37:C41))/24)","v":0},0,0,0,0,0,0,0,0,0,0,0,0,0,0,0]
[]
[]
[]
[null,"LYCEE leçon"]
[null,"Lycée mise en situation opé"]
[null,"Co-intervention Maths","INSUFFISANT",1]
[null,"Co-intervention Lettres","FRAGILE",2]
[null,"Chef d'œuvre","SATISFAISANT",3]
[null,"PFMP","MAITRISEE",4]
[null,"Prestations Extérieures","NON EVALUEE",0]
[null,"Situations extra-scolaires"]
[null,"JSP"]
[]
[]
[]
[]
[null,"INSUFFISANT",{"$f":"COUNTIF(C$10:C$15,$B$37)*1","v":0},0,0,0,0,0,0,0,0,0,0,0,0,0,0,0]
[null,"FRAGILE",{"$f":"COUNTIF(C$10:C$15,$B$38)*2","v":0},0,0,0,0,0,0,0,0,0,0,0,0,0,0,0]
[null,"SATISFAISANT",{"$f":"COUNTIF(C$10:C$15,$B$39)*3","v":0},0,0,0,0,0,0,0,0,0,0,0,0,0,0,0]
[null,"MAITRISEE",{"$f":"COUNTIF(C$10:C$15,$B$40)*4","v":0},0,0,0,0,0,0,0,0,0,0,0,0,0,0,0]
[null,"NON EVALUEE",{"$f":"COUNTIF(C$10:C$15,$B$41)*0","v":0},0,0,0,0,0,0,0,0,0,0,0,0,0,0,0]

{"sheet":"Fonction 2","index":1,"n_rows":66,"n_cols":19,"rows_kept":66,"cut":false,"hidden":false,"merged":[[3,13,3,17],[2,5,2,20],[3,5,3,6],[5,2,5,3],[5,4,5,9],[5,10,5,15],[3,18,3,20],[5,19,42,20],[7,10,7,11],[5,16,5,18],[8,2,8,18],[7,16,7,18],[6,2,6,3],[6,4,6,9],[6,10,6,15],[6,16,6,18],[42,0,42,1],[41,0,41,1],[1,0,1,1],[5,0,7,0],[3,7,3,12],[7,7,7,8],[39,0,40,0],[38,0,38,1]]}
[]
[]
[null,null,null,null,null,"FONCTION 2: La sécurité incendie "]
[null,null,null,null,null,"A2.1 Respecter et faire respecter des consignes de sécurité ",null,"A2.2                                                                                                                                                     Alerter ",null,null,null,null,null,"A2.3                                                                                                                                                                                      Éteindre un feu ",null,null,null,null,"A2.4                                                                                                                  Rédiger des écrits professionnels et communiquer oralement  "]
[null,null,"A2.1C1: Se repérer dans les lieux ","A2.1C2: Vérifier l’application des consignes de sécurité ","A2.2C1: Interpréter l’alarme ","A2.2C2: Effectuer ou faire effectuer la levée de doute ","A2.2C3: Alerter","A2.2C4: Sécuriser les personnes  ","A2.2C5: Sécuriser le site ","A2.2C6: Guider les services de secours ","A2.3C1: Intervenir sur un début d’incendie  ","A2.3C2:Utiliser les moyens d’extinction adaptés du site  ","A2.3C3: Réaliser des sauvetages ","A2.3C4: Réaliser des mises en sécurité ","A2.3C5: Mettre en œuvre les gestes techniques avec les équipements et matériels appropriés ","A2.3C6: Maintenir la capacité opérationnelle des matériels et équipements \n","A2.4C1: Identifier et hiérarchiser les informations  ","A2.4C2: Rédiger des écrits \nprofessionnels  \n","A2.4C3: Rendre compte oralement à sa hiérarchie "]
[null,"TACHES A EFFECTUER "]
[null,"CONNAISSANCES"]
[null,"CRITERES EVALUATION"]
["CONTEXTES","DATES"]
[null,null,"NON EVALUEE","NON EVALUEE","NON EVALUEE","NON EVALUEE","NON EVALUEE","NON EVALUEE","NON EVALUEE","NON EVALUEE","NON EVALUEE","NON EVALUEE","NON EVALUEE","NON EVALUEE","NON EVALUEE","NON EVALUEE","NON EVALUEE","NON EVALUEE","NON EVALUEE"]
[null,null,"NON EVALUEE","NON EVALUEE","NON EVALUEE","NON EVALUEE","NON EVALUEE","NON EVALUEE","NON EVALUEE","NON EVALUEE","NON EVALUEE","NON EVALUEE","NON EVALUEE","NON EVALUEE","NON EVALUEE","NON EVALUEE","NON EVALUEE","NON EVALUEE","NON EVALUEE"]
[null,null,"NON EVALUEE","NON EVALUEE","NON EVALUEE","NON EVALUEE","NON EVALUEE","NON EVALUEE","NON EVALUEE","NON EVALUEE","NON EVALUEE","NON EVALUEE","NON EVALUEE","NON EVALUEE","NON EVALUEE","NON EVALUEE","NON EVALUEE","NON EVALUEE","NON EVALUEE"]
[null,null,"NON EVALUEE","NON EVALUEE","NON EVALUEE","NON EVALUEE","NON EVALUEE","NON EVALUEE","NON EVALUEE","NON EVALUEE","NON EVALUEE","NON EVALUEE","NON EVALUEE","NON EVALUEE","NON EVALUEE","NON EVALUEE","NON EVALUEE","NON EVALUEE","NON EVALUEE"]
[null,null,"NON EVALUEE","NON EVALUEE","NON EVALUEE","NON EVALUEE","NON EVALUEE","NON EVALUEE","NON EVALUEE","NON EVALUEE","NON EVALUEE","NON EVALUEE","NON EVALUEE","NON EVALUEE","NON EVALUEE","NON EVALUEE","NON EVALUEE","NON EVALUEE","NON EVALUEE"]
[null,null,"NON EVALUEE","NON EVALUEE","NON EVALUEE","NON EVALUEE","NON EVALUEE","NON EVALUEE","NON EVALUEE","NON EVALUEE","NON EVALUEE","NON EVALUEE","NON EVALUEE","NON EVALUEE","NON EVALUEE","NON EVALUEE","NON EVALUEE","NON EVALUEE","NON EVALUEE"]
[null,null,"NON EVALUEE","NON EVALUEE","NON EVALUEE","NON EVALUEE","NON EVALUEE","NON EVALUEE","NON EVALUEE","NON EVALUEE","NON EVALUEE","NON EVALUEE","NON EVALUEE","NON EVALUEE","NON EVALUEE","NON EVALUEE","NON EVALUEE","NON EVALUEE","NON EVALUEE"]
[null,null,"NON EVALUEE","NON EVALUEE","NON EVALUEE","NON EVALUEE","NON EVALUEE","NON EVALUEE","NON EVALUEE","NON EVALUEE","NON EVALUEE","NON EVALUEE","NON EVALUEE","NON EVALUEE","NON EVALUEE","NON EVALUEE","NON EVALUEE","NON EVALUEE","NON EVALUEE"]
[null,null,"NON EVALUEE","NON EVALUEE","NON EVALUEE","NON EVALUEE","NON EVALUEE","NON EVALUEE","NON EVALUEE","NON EVALUEE","NON EVALUEE","NON EVALUEE","NON EVALUEE","NON EVALUEE","NON EVALUEE","NON EVALUEE","NON EVALUEE","NON EVALUEE","NON EVALUEE"]
[null,null,"NON EVALUEE","NON EVALUEE","NON EVALUEE","NON EVALUEE","NON EVALUEE","NON EVALUEE","NON EVALUEE","NON EVALUEE","NON EVALUEE","NON EVALUEE","NON EVALUEE","NON EVALUEE","NON EVALUEE","NON EVALUEE","NON EVALUEE","NON EVALUEE","NON EVALUEE"]
[null,null,"NON EVALUEE","NON EVALUEE","NON EVALUEE","NON EVALUEE","NON EVALUEE","NON EVALUEE","NON EVALUEE","NON EVALUEE","NON EVALUEE","NON EVALUEE","NON EVALUEE","NON EVALUEE","NON EVALUEE","NON EVALUEE","NON EVALUEE","NON EVALUEE","NON EVALUEE"]
[null,null,"NON EVALUEE","NON EVALUEE","NON EVALUEE","NON EVALUEE","NON EVALUEE","NON EVALUEE","NON EVALUEE","NON EVALUEE","NON EVALUEE","NON EVALUEE","NON EVALUEE","NON EVALUEE","NON EVALUEE","NON EVALUEE","NON EVALUEE","NON EVALUEE","NON EVALUEE"]
[null,null,"NON EVALUEE","NON EVALUEE","NON EVALUEE","NON EVALUEE","NON EVALUEE","NON EVALUEE","NON EVALUEE","NON EVALUEE","NON EVALUEE","NON EVALUEE","NON EVALUEE","NON EVALUEE","NON EVALUEE","NON EVALUEE","NON EVALUEE","NON EVALUEE","NON EVALUEE"]
[null,null,"NON EVALUEE","NON EVALUEE","NON EVALUEE","NON EVALUEE","NON EVALUEE","NON EVALUEE","NON EVALUEE","NON EVALUEE","NON EVALUEE","NON EVALUEE","NON EVALUEE","NON EVALUEE","NON EVALUEE","NON EVALUEE","NON EVALUEE","NON EVALUEE","NON EVALUEE"]
[null,null,"NON EVALUEE","NON EVALUEE","NON EVALUEE","NON EVALUEE","NON EVALUEE","NON EVALUEE","NON EVALUEE","NON EVALUEE","NON EVALUEE","NON EVALUEE","NON EVALUEE","NON EVALUEE","NON EVALUEE","NON EVALUEE","NON EVALUEE","NON EVALUEE","NON EVALUEE"]
[null,null,"NON EVALUEE","NON EVALUEE","NON EVALUEE","NON EVALUEE","NON EVALUEE","NON EVALUEE","NON EVALUEE","NON EVALUEE","NON EVALUEE","NON EVALUEE","NON EVALUEE","NON EVALUEE","NON EVALUEE","NON EVALUEE","NON EVALUEE","NON EVALUEE","NON EVALUEE"]
[null,null,"NON EVALUEE","NON EVALUEE","NON EVALUEE","NON EVALUEE","NON EVALUEE","NON EVALUEE","NON EVALUEE","NON EVALUEE","NON EVALUEE","NON EVALUEE","NON EVALUEE","NON EVALUEE","NON EVALUEE","NON EVALUEE","NON EVALUEE","NON EVALUEE","NON EVALUEE"]
[null,null,"NON EVALUEE","NON EVALUEE","NON EVALUEE","NON EVALUEE","NON EVALUEE","NON EVALUEE","NON EVALUEE","NON EVALUEE","NON EVALUEE","NON EVALUEE","NON EVALUEE","NON EVALUEE","NON EVALUEE","NON EVALUEE","NON EVALUEE","NON EVALUEE","NON EVALUEE"]
[null,null,"NON EVALUEE","NON EVALUEE","NON EVALUEE","NON EVALUEE","NON EVALUEE","NON EVALUEE","NON EVALUEE","NON EVALUEE","NON EVALUEE","NON EVALUEE","NON EVALUEE","NON EVALUEE","NON EVALUEE","NON EVALUEE","NON EVALUEE","NON EVALUEE","NON EVALUEE"]
[null,null,"NON EVALUEE","NON EVALUEE","NON EVALUEE","NON EVALUEE","NON EVALUEE","NON EVALUEE","NON EVALUEE","NON EVALUEE","NON EVALUEE","NON EVALUEE","NON EVALUEE","NON EVALUEE","NON EVALUEE","NON EVALUEE","NON EVALUEE","NON EVALUEE","NON EVALUEE"]
[null,null,"NON EVALUEE","NON EVALUEE","NON EVALUEE","NON EVALUEE","NON EVALUEE","NON EVALUEE","NON EVALUEE","NON EVALUEE","NON EVALUEE","NON EVALUEE","NON EVALUEE","NON EVALUEE","NON EVALUEE","NON EVALUEE","NON EVALUEE","NON EVALUEE","NON EVALUEE"]
[null,null,"NON EVALUEE","NON EVALUEE","NON EVALUEE","NON EVALUEE","NON EVALUEE","NON EVALUEE","NON EVALUEE","NON EVALUEE","NON EVALUEE","NON EVALUEE","NON EVALUEE","NON EVALUEE","NON EVALUEE","NON EVALUEE","NON EVALUEE","NON EVALUEE","NON EVALUEE"]
[null,null,"NON EVALUEE","NON EVALUEE","NON EVALUEE","NON EVALUEE","NON EVALUEE","NON EVALUEE","NON EVALUEE","NON EVALUEE","NON EVALUEE","NON EVALUEE","NON EVALUEE","NON EVALUEE","NON EVALUEE","NON EVALUEE","NON EVALUEE","NON EVALUEE","NON EVALUEE"]
[null,null,"NON EVALUEE","NON EVALUEE","NON EVALUEE","NON EVALUEE","NON EVALUEE","NON EVALUEE","NON EVALUEE","NON EVALUEE","NON EVALUEE","NON EVALUEE","NON EVALUEE","NON EVALUEE","NON EVALUEE","NON EVALUEE","NON EVALUEE","NON EVALUEE","NON EVALUEE"]
[null,null,"NON EVALUEE","NON EVALUEE","NON EVALUEE","NON EVALUEE","NON EVALUEE","NON EVALUEE","NON EVALUEE","NON EVALUEE","NON EVALUEE","NON EVALUEE","NON EVALUEE","NON EVALUEE","NON EVALUEE","NON EVALUEE","NON EVALUEE","NON EVALUEE","NON EVALUEE"]
[null,null,"NON EVALUEE","NON EVALUEE","NON EVALUEE","NON EVALUEE","NON EVALUEE","NON EVALUEE","NON EVALUEE","NON EVALUEE","NON EVALUEE","NON EVALUEE","NON EVALUEE","NON EVALUEE","NON EVALUEE","NON EVALUEE","NON EVALUEE","NON EVALUEE","NON EVALUEE"]
[null,null,"NON EVALUEE","NON EVALUEE","NON EVALUEE","NON EVALUEE","NON EVALUEE","NON EVALUEE","NON EVALUEE","NON EVALUEE","NON EVALUEE","NON EVALUEE","NON EVALUEE","NON EVALUEE","NON EVALUEE","NON EVALUEE","NON EVALUEE","NON EVALUEE","NON EVALUEE"]
[null,null,"NON EVALUEE","NON EVALUEE","NON EVALUEE","NON EVALUEE","NON EVALUEE","NON EVALUEE","NON EVALUEE","NON EVALUEE","NON EVALUEE","NON EVALUEE","NON EVALUEE","NON EVALUEE","NON EVALUEE","NON EVALUEE","NON EVALUEE","NON EVALUEE","NON EVALUEE"]
[null,null,"NON EVALUEE","NON EVALUEE","NON EVALUEE","NON EVALUEE","NON EVALUEE","NON EVALUEE","NON EVALUEE","NON EVALUEE","NON EVALUEE","NON EVALUEE","NON EVALUEE","NON EVALUEE","NON EVALUEE","NON EVALUEE","NON EVALUEE","NON EVALUEE","NON EVALUEE"]
["PFMP"]
["PLACE DE L'ELEVE","Agent"]
[null,"Chef d'équipe"]
["Ressentis, difficultés rencontrées, axes d'amélioration"]
["Bilan",null,{"$f":"((SUM(C$52:C$56))/116)","v":0},{"$f":"((SUM(D$52:D$56))/116)","v":0},0,0,0,0,0,0,0,0,0,0,0,0,0,0,0]
[]
[]
[null,null,"INSUFFISANT"]
[null,null,"FRAGILE"]
[null,null,"SATISFAISANT"]
[null,null,"MAITRISEE"]
[null,null,"NON EVALUEE"]
[]
[null,"INSUFFISANT",{"$f":"COUNTIF(C$10:C$38,$B$36)*1","v":0},{"$f":"COUNTIF(D$10:D$38,$B$36)*1","v":0},0,0,0,0,0,0,0,0,0,0,0,0,0,0]
[null,"FRAGILE",{"$f":"COUNTIF(C$10:C$38,$B$53)*2","v":0},{"$f":"COUNTIF(D$10:D$38,$B$53)*2","v":0},0,0,0,0,0,0,0,0,0,0,0,0,0,0]
[null,"SATISFAISANT",{"$f":"COUNTIF(C$10:C$38,$B$54)*3","v":0},{"$f":"COUNTIF(D$10:D$38,$B$54)*3","v":0},0,0,0,0,0,0,0,0,0,0,0,0,0,0]
[null,"MAITRISEE",{"$f":"COUNTIF(C$10:C$38,$B$55)*4","v":0},{"$f":"COUNTIF(D$10:D$38,$B$55)*4","v":0},0,0,0,0,0,0,0,0,0,0,0,0,0,0]
[null,"NON EVALUEE",{"$f":"COUNTIF(C$10:C$15,$B$56)*0","v":0},{"$f":"COUNTIF(D$10:D$15,$B$56)*0","v":0},0,0,0,0,0,0,0,0,0,0,0,0,0,0]
[]
["LYCEE leçon"]
["Lycée mise en situation opé"]
["Co-intervention Maths"]
["Co-intervention Lettres"]
["Chef d'œuvre"]
["PFMP"]
["Prestations Extérieures"]
["Situations extra-scolaires"]
["JSP"]

{"sheet":"Fonction 3","index":2,"n_rows":68,"n_cols":11,"rows_kept":68,"cut":false,"hidden":false,"merged":[[39,0,39,1],[7,7,7,8],[43,0,43,1],[42,0,42,1],[10,9,43,10],[40,0,41,0],[1,4,1,10],[4,4,4,9],[2,4,3,10],[1,0,4,3],[9,2,9,8],[6,0,8,0],[5,0,5,1],[6,2,6,6],[6,9,9,10],[6,7,6,8],[8,2,8,3],[7,2,7,6]]}
[]
[]
[null,null,null,null,"FONCTION 3: Le secours à personne "]
[]
[null,null,null,null,"A3.1                                                                                                                                                              Assurer les missions de secours et d’assistance aux victimes, seul ou en équipe ",null,null,null,null,null,"A3.2                                    Maintenir la capacité opérationnelle des matériels  "]
[null,null,"A3.1C1: 1C1 Assurer la sécurité du sauveteur, de la victime et des tiers ","A3.1C2: Alerter les services de secours compétents ","A3.1C3: Assister et porter secours aux victimes ","A3.1C4: Garder la maîtrise de soi ","A3.1C5: Renseigner les secours organisés ","A3.2C1: Assurer la remise en conformité des matériels ","A3.2C2: Respecter les protocoles de nettoyage "]
[null,"TACHES A EFFECTUER "]
[null,"CONNAISSANCES"]
[null,"CRITERES EVALUATION"]
["CONTEXTES","DATES"]
[null,null,"NON EVALUEE","NON EVALUEE","NON EVALUEE","NON EVALUEE","NON EVALUEE","NON EVALUEE","NON EVALUEE"]
[null,null,"NON EVALUEE","NON EVALUEE","NON EVALUEE","NON EVALUEE","NON EVALUEE","NON EVALUEE","NON EVALUEE"]
[null,null,"NON EVALUEE","NON EVALUEE","NON EVALUEE","NON EVALUEE","NON EVALUEE","NON EVALUEE","NON EVALUEE"]
[null,null,"NON EVALUEE","NON EVALUEE","NON EVALUEE","NON EVALUEE","NON EVALUEE","NON EVALUEE","NON EVALUEE"]
[null,null,"NON EVALUEE","NON EVALUEE","NON EVALUEE","NON EVALUEE","NON EVALUEE","NON EVALUEE","NON EVALUEE"]
[null,null,"NON EVALUEE","NON EVALUEE","NON EVALUEE","NON EVALUEE","NON EVALUEE","NON EVALUEE","NON EVALUEE"]
[null,null,"NON EVALUEE","NON EVALUEE","NON EVALUEE","NON EVALUEE","NON EVALUEE","NON EVALUEE","NON EVALUEE"]
[null,null,"NON EVALUEE","NON EVALUEE","NON EVALUEE","NON EVALUEE","NON EVALUEE","NON EVALUEE","NON EVALUEE"]
[null,null,"NON EVALUEE","NON EVALUEE","NON EVALUEE","NON EVALUEE","NON EVALUEE","NON EVALUEE","NON EVALUEE"]
[null,null,"NON EVALUEE","NON EVALUEE","NON EVALUEE","NON EVALUEE","NON EVALUEE","NON EVALUEE","NON EVALUEE"]
[null,null,"NON EVALUEE","NON EVALUEE","NON EVALUEE","NON EVALUEE","NON EVALUEE","NON EVALUEE","NON EVALUEE"]
[null,null,"NON EVALUEE","NON EVALUEE","NON EVALUEE","NON EVALUEE","NON EVALUEE","NON EVALUEE","NON EVALUEE"]
[null,null,"NON EVALUEE","NON EVALUEE","NON EVALUEE","NON EVALUEE","NON EVALUEE","NON EVALUEE","NON EVALUEE"]
[null,null,"NON EVALUEE","NON EVALUEE","NON EVALUEE","NON EVALUEE","NON EVALUEE","NON EVALUEE","NON EVALUEE"]
[null,null,"NON EVALUEE","NON EVALUEE","NON EVALUEE","NON EVALUEE","NON EVALUEE","NON EVALUEE","NON EVALUEE"]
[null,null,"NON EVALUEE","NON EVALUEE","NON EVALUEE","NON EVALUEE","NON EVALUEE","NON EVALUEE","NON EVALUEE"]
[null,null,"NON EVALUEE","NON EVALUEE","NON EVALUEE","NON EVALUEE","NON EVALUEE","NON EVALUEE","NON EVALUEE"]
[null,null,"NON EVALUEE","NON EVALUEE","NON EVALUEE","NON EVALUEE","NON EVALUEE","NON EVALUEE","NON EVALUEE"]
[null,null,"NON EVALUEE","NON EVALUEE","NON EVALUEE","NON EVALUEE","NON EVALUEE","NON EVALUEE","NON EVALUEE"]
[null,null,"NON EVALUEE","NON EVALUEE","NON EVALUEE","NON EVALUEE","NON EVALUEE","NON EVALUEE","NON EVALUEE"]
[null,null,"NON EVALUEE","NON EVALUEE","NON EVALUEE","NON EVALUEE","NON EVALUEE","NON EVALUEE","NON EVALUEE"]
[null,null,"NON EVALUEE","NON EVALUEE","NON EVALUEE","NON EVALUEE","NON EVALUEE","NON EVALUEE","NON EVALUEE"]
[null,null,"NON EVALUEE","NON EVALUEE","NON EVALUEE","NON EVALUEE","NON EVALUEE","NON EVALUEE","NON EVALUEE"]
[null,null,"NON EVALUEE","NON EVALUEE","NON EVALUEE","NON EVALUEE","NON EVALUEE","NON EVALUEE","NON EVALUEE"]
[null,null,"NON EVALUEE","NON EVALUEE","NON EVALUEE","NON EVALUEE","NON EVALUEE","NON EVALUEE","NON EVALUEE"]
[null,null,"NON EVALUEE","NON EVALUEE","NON EVALUEE","NON EVALUEE","NON EVALUEE","NON EVALUEE","NON EVALUEE"]
[null,null,"NON EVALUEE","NON EVALUEE","NON EVALUEE","NON EVALUEE","NON EVALUEE","NON EVALUEE","NON EVALUEE"]
[null,null,"NON EVALUEE","NON EVALUEE","NON EVALUEE","NON EVALUEE","NON EVALUEE","NON EVALUEE","NON EVALUEE"]
[null,null,"NON EVALUEE","NON EVALUEE","NON EVALUEE","NON EVALUEE","NON EVALUEE","NON EVALUEE","NON EVALUEE"]
["PFMP"]
["PLACE DE L'ELEVE","Agent"]
[null,"Chef d'équipe"]
["Ressentis, difficultés rencontrées, axes d'amélioration"]
["Bilan",null,{"$f":"((SUM(C$54:C$58))/116)","v":0},{"$f":"((SUM(D$54:D$58))/116)","v":0},0,0,0,0,0]
[]
[]
[]
[null,null,null,"INSUFFISANT"]
[null,null,null,"FRAGILE"]
[null,null,null,"SATISFAISANT"]
[null,null,null,"MAITRISEE"]
[null,null,null,"NON EVALUEE"]
[]
[null,"INSUFFISANT",{"$f":"COUNTIF(C$11:C$39,$B$36)*1","v":0},{"$f":"COUNTIF(D$11:D$39,$B$36)*1","v":0},0,0,0,0,0]
[null,"FRAGILE",{"$f":"COUNTIF(C$11:C$39,$B$55)*2","v":0},{"$f":"COUNTIF(D$11:D$39,$B$55)*2","v":0},0,0,0,0,0]
[null,"SATISFAISANT",{"$f":"COUNTIF(C$11:C$39,$B$56)*3","v":0},{"$f":"COUNTIF(D$11:D$39,$B$56)*3","v":0},0,0,0,0,0]
[null,"MAITRISEE",{"$f":"COUNTIF(C$11:C$39,$B$57)*4","v":0},{"$f":"COUNTIF(D$11:D$39,$B$57)*4","v":0},0,0,0,0,0]
[null,"NON EVALUEE",{"$f":"COUNTIF(C$11:C$39,$B$58)*0","v":0},{"$f":"COUNTIF(D$11:D$39,$B$58)*0","v":0},0,0,0,0,0]
[]
["LYCEE leçon"]
["Lycée mise en situation opé"]
["Co-intervention Maths"]
["Co-intervention Lettres"]
["Chef d'œuvre"]
["PFMP"]
["Prestations Extérieures"]
["Situations extra-scolaires"]
["JSP"]

{"sheet":"Fonction 4","index":3,"n_rows":58,"n_cols":14,"rows_kept":58,"cut":false,"hidden":false,"merged":[[42,0,42,1],[1,0,8,0],[9,2,9,12],[6,13,43,15],[1,4,1,15],[6,2,6,7],[6,8,6,9],[6,10,6,12],[4,13,4,15],[4,4,4,10],[4,11,4,12],[2,4,3,15],[1,1,4,3],[7,2,7,7],[7,8,7,9],[39,0,39,1],[7,10,7,12],[40,0,41,0],[43,0,43,1]]}
[]
[]
[null,null,null,null,"FONCTION 4: La protection des personnes, des biens et de l’environnement "]
[]
[null,null,null,null,"A4.1                                                                                                                                                                            Assurer la surveillance des lieux et des accès dans des sites (ERP, IGH, ITGH, industriels, autres) ",null,null,null,null,null,null,"A4.2                        Protéger l’intégrité physique des personnes  ",null,"A4.3                                                                                   Constater et identifier : \n- les atteintes aux biens et/ou à l’environnement  \n- les situations à risque  \n"]
[null,null,"A4.1C1: Assurer la surveillance des lieux et des accès ","A4.1C2: Analyser les images issues de la vidéoprotection et prendre les mesures adaptées \n","A4.1C3: Manager une équipe ","A4.1C4: Transmettre des connaissances professionnelles à son équipe \n ","A4.1C5: Organiser le fonctionnement d’un poste central de sécurité (PCS) ","A4.1C6: Rendre compte  ","A4.2C1: Prendre les mesures pour protéger son intégrité physique et celle des autres  ","A4.2C2: Gérer son comportement en situation de tension \n","A4.3C1: Alerter les services compétents \n ","A4.3C2: Appliquer les protocoles adaptés à la situation \n ","A4.3C3: 3C3 Mettre en œuvre les mesures conservatoires \n "]
[null,"TACHES A EFFECTUER "]
[null,"CONNAISSANCES"]
[null,"CRITERES EVALUATION"]
["CONTEXTES","DATES"]
[null,null,"NON EVALUEE","NON EVALUEE","NON EVALUEE","NON EVALUEE","NON EVALUEE","NON EVALUEE","NON EVALUEE","NON EVALUEE","NON EVALUEE","NON EVALUEE","NON EVALUEE"]
[null,null,"NON EVALUEE","NON EVALUEE","NON EVALUEE","NON EVALUEE","NON EVALUEE","NON EVALUEE","NON EVALUEE","NON EVALUEE","NON EVALUEE","NON EVALUEE","NON EVALUEE"]
[null,null,"NON EVALUEE","NON EVALUEE","NON EVALUEE","NON EVALUEE","NON EVALUEE","NON EVALUEE","NON EVALUEE","NON EVALUEE","NON EVALUEE","NON EVALUEE","NON EVALUEE"]
[null,null,"NON EVALUEE","NON EVALUEE","NON EVALUEE","NON EVALUEE","NON EVALUEE","NON EVALUEE","NON EVALUEE","NON EVALUEE","NON EVALUEE","NON EVALUEE","NON EVALUEE"]
[null,null,"NON EVALUEE","NON EVALUEE","NON EVALUEE","NON EVALUEE","NON EVALUEE","NON EVALUEE","NON EVALUEE","NON EVALUEE","NON EVALUEE","NON EVALUEE","NON EVALUEE"]
[null,null,"NON EVALUEE","NON EVALUEE","NON EVALUEE","NON EVALUEE","NON EVALUEE","NON EVALUEE","NON EVALUEE","NON EVALUEE","NON EVALUEE","NON EVALUEE","NON EVALUEE"]
[null,null,"NON EVALUEE","NON EVALUEE","NON EVALUEE","NON EVALUEE","NON EVALUEE","NON EVALUEE","NON EVALUEE","NON EVALUEE","NON EVALUEE","NON EVALUEE","NON EVALUEE"]
[null,null,"NON EVALUEE","NON EVALUEE","NON EVALUEE","NON EVALUEE","NON EVALUEE","NON EVALUEE","NON EVALUEE","NON EVALUEE","NON EVALUEE","NON EVALUEE","NON EVALUEE"]
[null,null,"NON EVALUEE","NON EVALUEE","NON EVALUEE","NON EVALUEE","NON EVALUEE","NON EVALUEE","NON EVALUEE","NON EVALUEE","NON EVALUEE","NON EVALUEE","NON EVALUEE"]
[null,null,"NON EVALUEE","NON EVALUEE","NON EVALUEE","NON EVALUEE","NON EVALUEE","NON EVALUEE","NON EVALUEE","NON EVALUEE","NON EVALUEE","NON EVALUEE","NON EVALUEE"]
[null,null,"NON EVALUEE","NON EVALUEE","NON EVALUEE","NON EVALUEE","NON EVALUEE","NON EVALUEE","NON EVALUEE","NON EVALUEE","NON EVALUEE","NON EVALUEE","NON EVALUEE"]
[null,null,"NON EVALUEE","NON EVALUEE","NON EVALUEE","NON EVALUEE","NON EVALUEE","NON EVALUEE","NON EVALUEE","NON EVALUEE","NON EVALUEE","NON EVALUEE","NON EVALUEE"]
[null,null,"NON EVALUEE","NON EVALUEE","NON EVALUEE","NON EVALUEE","NON EVALUEE","NON EVALUEE","NON EVALUEE","NON EVALUEE","NON EVALUEE","NON EVALUEE","NON EVALUEE"]
[null,null,"NON EVALUEE","NON EVALUEE","NON EVALUEE","NON EVALUEE","NON EVALUEE","NON EVALUEE","NON EVALUEE","NON EVALUEE","NON EVALUEE","NON EVALUEE","NON EVALUEE"]
[null,null,"NON EVALUEE","NON EVALUEE","NON EVALUEE","NON EVALUEE","NON EVALUEE","NON EVALUEE","NON EVALUEE","NON EVALUEE","NON EVALUEE","NON EVALUEE","NON EVALUEE"]
[null,null,"NON EVALUEE","NON EVALUEE","NON EVALUEE","NON EVALUEE","NON EVALUEE","NON EVALUEE","NON EVALUEE","NON EVALUEE","NON EVALUEE","NON EVALUEE","NON EVALUEE"]
[null,null,"NON EVALUEE","NON EVALUEE","NON EVALUEE","NON EVALUEE","NON EVALUEE","NON EVALUEE","NON EVALUEE","NON EVALUEE","NON EVALUEE","NON EVALUEE","NON EVALUEE"]
[null,null,"NON EVALUEE","NON EVALUEE","NON EVALUEE","NON EVALUEE","NON EVALUEE","NON EVALUEE","NON EVALUEE","NON EVALUEE","NON EVALUEE","NON EVALUEE","NON EVALUEE"]
[null,null,"NON EVALUEE","NON EVALUEE","NON EVALUEE","NON EVALUEE","NON EVALUEE","NON EVALUEE","NON EVALUEE","NON EVALUEE","NON EVALUEE","NON EVALUEE","NON EVALUEE"]
[null,null,"NON EVALUEE","NON EVALUEE","NON EVALUEE","NON EVALUEE","NON EVALUEE","NON EVALUEE","NON EVALUEE","NON EVALUEE","NON EVALUEE","NON EVALUEE","NON EVALUEE"]
[null,null,"NON EVALUEE","NON EVALUEE","NON EVALUEE","NON EVALUEE","NON EVALUEE","NON EVALUEE","NON EVALUEE","NON EVALUEE","NON EVALUEE","NON EVALUEE","NON EVALUEE"]
[null,null,"NON EVALUEE","NON EVALUEE","NON EVALUEE","NON EVALUEE","NON EVALUEE","NON EVALUEE","NON EVALUEE","NON EVALUEE","NON EVALUEE","NON EVALUEE","NON EVALUEE"]
[null,null,"NON EVALUEE","NON EVALUEE","NON EVALUEE","NON EVALUEE","NON EVALUEE","NON EVALUEE","NON EVALUEE","NON EVALUEE","NON EVALUEE","NON EVALUEE","NON EVALUEE"]
[null,null,"NON EVALUEE","NON EVALUEE","NON EVALUEE","NON EVALUEE","NON EVALUEE","NON EVALUEE","NON EVALUEE","NON EVALUEE","NON EVALUEE","NON EVALUEE","NON EVALUEE"]
[null,null,"NON EVALUEE","NON EVALUEE","NON EVALUEE","NON EVALUEE","NON EVALUEE","NON EVALUEE","NON EVALUEE","NON EVALUEE","NON EVALUEE","NON EVALUEE","NON EVALUEE"]
[null,null,"NON EVALUEE","NON EVALUEE","NON EVALUEE","NON EVALUEE","NON EVALUEE","NON EVALUEE","NON EVALUEE","NON EVALUEE","NON EVALUEE","NON EVALUEE","NON EVALUEE"]
[null,null,"NON EVALUEE","NON EVALUEE","NON EVALUEE","NON EVALUEE","NON EVALUEE","NON EVALUEE","NON EVALUEE","NON EVALUEE","NON EVALUEE","NON EVALUEE","NON EVALUEE"]
[null,null,"NON EVALUEE","NON EVALUEE","NON EVALUEE","NON EVALUEE","NON EVALUEE","NON EVALUEE","NON EVALUEE","NON EVALUEE","NON EVALUEE","NON EVALUEE","NON EVALUEE"]
[null,null,"NON EVALUEE","NON EVALUEE","NON EVALUEE","NON EVALUEE","NON EVALUEE","NON EVALUEE","NON EVALUEE","NON EVALUEE","NON EVALUEE","NON EVALUEE","NON EVALUEE"]
["PFMP"]
["PLACE DE L'ELEVE","Agent"]
[null,"Chef d'équipe"]
["Ressentis, difficultés rencontrées, axes d'amélioration"]
["Bilan",null,{"$f":"((SUM(C$54:C$58))/116)","v":0},{"$f":"((SUM(D$54:D$58))/116)","v":0},0,0,0,0,0,0,0,0,0]
[]
[]
["LYCEE leçon",null,null,"INSUFFISANT"]
["Lycée mise en situation opé",null,null,"FRAGILE"]
["Co-intervention Maths",null,null,"SATISFAISANT"]
["Co-intervention Lettres",null,null,"MAITRISEE"]
["Chef d'œuvre",null,null,"NON EVALUEE"]
["PFMP"]
["Prestations Extérieures"]
["Situations extra-scolaires","INSUFFISANT",{"$f":"COUNTIF(C$11:C$39,$B$36)*1","v":0},{"$f":"COUNTIF(D$11:D$39,$B$36)*1","v":0},0,0,0,0,0,0,0,0,0]
["JSP","FRAGILE",{"$f":"COUNTIF(C$11:C$39,$B$55)*2","v":0},{"$f":"COUNTIF(D$11:D$39,$B$55)*2","v":0},0,0,0,0,0,0,0,0,0]
[null,"SATISFAISANT",{"$f":"COUNTIF(C$11:C$39,$B$56)*3","v":0},{"$f":"COUNTIF(D$11:D$39,$B$56)*3","v":0},0,0,0,0,0,0,0,0,0]
[null,"MAITRISEE",{"$f":"COUNTIF(C$11:C$39,$B$57)*4","v":0},{"$f":"COUNTIF(D$11:D$39,$B$57)*4","v":0},0,0,0,0,0,0,0,0,0]
[null,"NON EVALUEE",{"$f":"COUNTIF(C$11:C$39,$B$58)*0","v":0},{"$f":"COUNTIF(D$11:D$39,$B$58)*0","v":0},0,0,0,0,0,0,0,0,0]

{"sheet":"BILAN","index":4,"n_rows":33,"n_cols":20,"rows_kept":33,"cut":false,"hidden":false,"merged":[[30,0,30,1],[14,18,14,19],[31,0,34,1],[31,2,34,3],[32,4,33,5],[20,0,21,1],[21,9,21,10],[28,13,28,15],[20,9,20,10],[23,0,27,0],[23,1,26,3],[23,4,23,15],[24,4,25,15],[26,4,26,10],[26,11,26,12],[26,13,26,15],[1,0,1,20],[2,0,3,3],[2,4,2,20],[3,4,3,6],[3,7,3,10],[3,11,3,14],[3,15,3,18],[3,19,3,20],[18,10,18,11],[16,4,17,11],[7,0,7,1],[14,0,14,1],[12,19,12,20],[9,5,9,20],[10,5,10,6],[10,7,10,12],[10,13,10,17],[10,18,10,20],[28,0,29,1],[22,0,22,1],[5,0,6,1],[12,0,13,1],[18,4,18,9],[19,0,19,1]]}
[]
[]
[null,null,null,null,"FONCTION 1: La sécurité dans les espaces publics et privés "]
[null,null,null,null,"A1.1                                                             Contribuer à la sécurisation d’une manifestation à caractère sportif, social, festif, culturel ",null,null,"A1.2                                                                                              Intervenir lors d’une \nsituation d’infraction  \n",null,null,null,"A1.3                                                                                                      Participer au maintien du bon ordre, de la salubrité, de la tranquillité sur la voie publique ou dans un espace privé ",null,null,null,"A1.4                                                               Intervenir en sécurité routière ",null,null,null,"A1.5                                            Rédiger des écrits professionnels et rendre compte oralement  "]
[null,null,"A1.1C1: Recueillir et transmettre les informations  ","A1.1C2: Procéder aux contrôles, filtrages et palpations \n","A1.2C1: Qualifier et classifier une infraction ","A1.2C2: Identifier le rôle des différents acteurs ","A1.2C3: Mettre en œuvre les procédures requises en fonction de la nature de la situation  \n","A1.2C4: Mettre en œuvre les gestes techniques professionnels d’intervention ","A1.3C1: Mettre en œuvre les techniques individuelles et /ou collectives d’évacuation  ","A1.3C2: Identifier les incidents ou atteintes à la tranquillité publique et donner l’alerte ","A1.3C3: Prévenir les services ou personnes compétents et habilités ","A1.3C4: Identifier et mettre en œuvre les actions adaptées à la sauvegarde \net à la protection du site \n","A1.4C1: Identifier les infractions au Code de la route \n","A1.4C2: Appliquer les techniques permettant de gérer la circulation ou les barrages routiers ","A1.4C3: Assurer la protection des lieux  ","A1.5C1: Identifier et hiérarchiser les informations  ","A1.5C2: Rédiger des écrits professionnels  ","A1.5C3: Utiliser le langage professionnel "]
["Bilan",null,0.83333333333333337,0.54166666666666663,0,0,0.16666666666666666,0,0,0,0,0,0,0,0,0,0,0]
[null,null,{"$f":"SUM('Fonction 1'!C$37:C$41)/24*100","v":0},{"$f":"SUM('Fonction 1'!D$37:D$41)/24*100","v":0},{"$f":"SUM('Fonction 1'!E$37:E$41)/24*100","v":0},{"$f":"SUM('Fonction 1'!F$37:F$41)/24*100","v":0},{"$f":"SUM('Fonction 1'!G$37:G$41)/24*100","v":0},{"$f":"SUM('Fonction 1'!H$37:H$41)/24*100","v":0},{"$f":"SUM('Fonction 1'!I$37:I$41)/24*100","v":0},{"$f":"SUM('Fonction 1'!J$37:J$41)/24*100","v":0},{"$f":"SUM('Fonction 1'!K$37:K$41)/24*100","v":0},{"$f":"SUM('Fonction 1'!L$37:L$41)/24*100","v":0},{"$f":"SUM('Fonction 1'!M$37:M$41)/24*100","v":0},{"$f":"SUM('Fonction 1'!N$37:N$41)/24*100","v":0},{"$f":"SUM('Fonction 1'!O$37:O$41)/24*100","v":0},{"$f":"SUM('Fonction 1'!P$37:P$41)/24*100","v":0},{"$f":"SUM('Fonction 1'!Q$37:Q$41)/24*100","v":0},{"$f":"SUM('Fonction 1'!R$37:R$41)/24*100","v":0}]
["Note ",null,{"$f":"C7*20/100","v":0},{"$f":"D7*20/100","v":0},0,0,0,0,0,0,0,0,0,0,0,0,0,0]
[]
[null,null,null,null,null,"FONCTION 2: La sécurité incendie "]
[null,null,null,null,null,"A2.1 Respecter et faire respecter des consignes de sécurité ",null,"A2.2                                                                                                                                                     Alerter ",null,null,null,null,null,"A2.3                                                                                                                                                                                      Éteindre un feu ",null,null,null,null,"A2.4                                                                                                                  Rédiger des écrits professionnels et communiquer oralement  "]
[null,null,"A2.1C1: Se repérer dans les lieux ","A2.1C2: Vérifier l’application des consignes de sécurité ","A2.2C1: Interpréter l’alarme ","A2.2C2: Effectuer ou faire effectuer la levée de doute ","A2.2C3: Alerter","A2.2C4: Sécuriser les personnes  ","A2.2C5: Sécuriser le site ","A2.2C6: Guider les services de secours ","A2.3C1: Intervenir sur un début d’incendie  ","A2.3C2:Utiliser les moyens d’extinction adaptés du site  ","A2.3C3: Réaliser des sauvetages ","A2.3C4: Réaliser des mises en sécurité ","A2.3C5: Mettre en œuvre les gestes techniques avec les équipements et matériels appropriés ","A2.3C6: Maintenir la capacité opérationnelle des matériels et équipements \n","A2.4C1: Identifier et hiérarchiser les informations  ","A2.4C2: Rédiger des écrits \nprofessionnels  \n","A2.4C3: Rendre compte oralement à sa hiérarchie "]
["BILAN",null,{"$f":"'Fonction 2'!C43","v":0},{"$f":"'Fonction 2'!D43","v":0},{"$f":"'Fonction 2'!E43","v":0},{"$f":"'Fonction 2'!F43","v":0},{"$f":"'Fonction 2'!G43","v":0},{"$f":"'Fonction 2'!H43","v":0},{"$f":"'Fonction 2'!I43","v":0},{"$f":"'Fonction 2'!J43","v":0},{"$f":"'Fonction 2'!K43","v":0},{"$f":"'Fonction 2'!L43","v":0},{"$f":"'Fonction 2'!M43","v":0},{"$f":"'Fonction 2'!N43","v":0},{"$f":"'Fonction 2'!O43","v":0},{"$f":"'Fonction 2'!P43","v":0},{"$f":"'Fonction 2'!Q43","v":0},{"$f":"'Fonction 2'!R43","v":0},{"$f":"'Fonction 2'!S43","v":0}]
[null,null,{"$f":"SUM('Fonction 2'!C52:C56)/116*100","v":0},{"$f":"SUM('Fonction 2'!D52:D56)/116*100","v":0},{"$f":"SUM('Fonction 2'!E52:E56)/116*100","v":0},{"$f":"SUM('Fonction 2'!F52:F56)/116*100","v":0},{"$f":"SUM('Fonction 2'!G52:G56)/116*100","v":0},{"$f":"SUM('Fonction 2'!H52:H56)/116*100","v":0},{"$f":"SUM('Fonction 2'!I52:I56)/116*100","v":0},{"$f":"SUM('Fonction 2'!J52:J56)/116*100","v":0},{"$f":"SUM('Fonction 2'!K52:K56)/116*100","v":0},{"$f":"SUM('Fonction 2'!L52:L56)/116*100","v":0},{"$f":"SUM('Fonction 2'!M52:M56)/116*100","v":0},{"$f":"SUM('Fonction 2'!N52:N56)/116*100","v":0},{"$f":"SUM('Fonction 2'!O52:O56)/116*100","v":0},{"$f":"SUM('Fonction 2'!P52:P56)/116*100","v":0},{"$f":"SUM('Fonction 2'!Q52:Q56)/116*100","v":0},{"$f":"SUM('Fonction 2'!R52:R56)/116*100","v":0},{"$f":"SUM('Fonction 2'!S52:S56)/116*100","v":0}]
["Note ",null,{"$f":"C14*20/100","v":0},{"$f":"D14*20/100","v":0},0,0,0,0,0,0,0,0,0,0,0,0,0,0,0]
[]
[null,null,null,null,"FONCTION 3: Le secours à personne "]
[]
[null,null,null,null,"A3.1                                                                                                                                                              Assurer les missions de secours et d’assistance aux victimes, seul ou en équipe ",null,null,null,null,null,"A3.2                                    Maintenir la capacité opérationnelle des matériels  "]
[null,null,"A3.1C1: 1C1 Assurer la sécurité du sauveteur, de la victime et des tiers ","A3.1C2: Alerter les services de secours compétents ","A3.1C3: Assister et porter secours aux victimes ","A3.1C4: Garder la maîtrise de soi ","A3.1C5: Renseigner les secours organisés ","A3.2C1: Assurer la remise en conformité des matériels ","A3.2C2: Respecter les protocoles de nettoyage "]
["BILAN",null,{"$f":"'Fonction 3'!C44","v":0},{"$f":"'Fonction 3'!D44","v":0},{"$f":"'Fonction 3'!E44","v":0},{"$f":"'Fonction 3'!F44","v":0},{"$f":"'Fonction 3'!G44","v":0},{"$f":"'Fonction 3'!H44","v":0},{"$f":"'Fonction 3'!I44","v":0}]
[null,null,{"$f":"SUM('Fonction 3'!C54:C58)/116*100","v":0},{"$f":"SUM('Fonction 3'!D54:D58)/116*100","v":0},{"$f":"SUM('Fonction 3'!E54:E58)/116*100","v":0},{"$f":"SUM('Fonction 3'!F54:F58)/116*100","v":0},{"$f":"SUM('Fonction 3'!G54:G58)/116*100","v":0},{"$f":"SUM('Fonction 3'!H54:H58)/116*100","v":0},{"$f":"SUM('Fonction 3'!I54:I58)/116*100","v":0}]
["Note ",null,{"$f":"C22*20/100","v":0},{"$f":"D22*20/100","v":0},0,0,0,0,0]
[]
[null,null,null,null,"FONCTION 4: La protection des personnes, des biens et de l’environnement "]
[]
[null,null,null,null,"A4.1                                                                                                                                                                            Assurer la surveillance des lieux et des accès dans des sites (ERP, IGH, ITGH, industriels, autres) ",null,null,null,null,null,null,"A4.2                        Protéger l’intégrité physique des personnes  ",null,"A4.3                                                                                   Constater et identifier : \n- les atteintes aux biens et/ou à l’environnement  \n- les situations à risque  \n"]
[null,null,"A4.1C1: Assurer la surveillance des lieux et des accès ","A4.1C2: Analyser les images issues de la vidéoprotection et prendre les mesures adaptées \n","A4.1C3: Manager une équipe ","A4.1C4: Transmettre des connaissances professionnelles à son équipe \n ","A4.1C5: Organiser le fonctionnement d’un poste central de sécurité (PCS) ","A4.1C6: Rendre compte  ","A4.2C1: Prendre les mesures pour protéger son intégrité physique et celle des autres  ","A4.2C2: Gérer son comportement en situation de tension \n","A4.3C1: Alerter les services compétents \n ","A4.3C2: Appliquer les protocoles adaptés à la situation \n ","A4.3C3: 3C3 Mettre en œuvre les mesures conservatoires \n "]
["BILAN",null,{"$f":"'Fonction 4'!C44","v":0},{"$f":"'Fonction 4'!D44","v":0},{"$f":"'Fonction 4'!E44","v":0},{"$f":"'Fonction 4'!F44","v":0},{"$f":"'Fonction 4'!G44","v":0},{"$f":"'Fonction 4'!H44","v":0},{"$f":"'Fonction 4'!I44","v":0},{"$f":"'Fonction 4'!J44","v":0},{"$f":"'Fonction 4'!K44","v":0},{"$f":"'Fonction 4'!L44","v":0},{"$f":"'Fonction 4'!M44","v":0}]
[null,null,{"$f":"SUM('Fonction 4'!C54:C58)/116*100","v":0},{"$f":"SUM('Fonction 4'!D54:D58)/116*100","v":0},{"$f":"SUM('Fonction 4'!E54:E58)/116*100","v":0},{"$f":"SUM('Fonction 4'!F54:F58)/116*100","v":0},{"$f":"SUM('Fonction 4'!G54:G58)/116*100","v":0},{"$f":"SUM('Fonction 4'!H54:H58)/116*100","v":0},{"$f":"SUM('Fonction 4'!I54:I58)/116*100","v":0},{"$f":"SUM('Fonction 4'!J54:J58)/116*100","v":0},{"$f":"SUM('Fonction 4'!K54:K58)/116*100","v":0},{"$f":"SUM('Fonction 4'!L54:L58)/116*100","v":0},{"$f":"SUM('Fonction 4'!M54:M58)/116*100","v":0}]
["Note ",null,{"$f":"C30*20/100","v":0},{"$f":"D30*20/100","v":0},0,0,0,0,0,0,0,0,0]
["Moyenne de l'élève",null,{"$f":"(SUM(C7:R7,C14:S14,C22:I22,C30:M30)/5100)*20","v":0}]
[null,null,null,null,"/ sur 20"]

{"sheet":"INDICATEURS","index":5,"n_rows":0,"n_cols":0,"rows_kept":0,"cut":false,"hidden":false,"merged":[]}